fUST/lending_fUST_20250405
["ID","MTS","AMOUNT","RATE_DAILY","PERIOD"]
[357158413,1743813043582,-570.72579474,0.00020599,2]
[357158414,1743813043592,-570.72579474,0.00020599,2]
[357158415,1743813043602,-570.72579474,0.00020599,2]
[357158416,1743813043611,-570.72579474,0.00020599,2]
[357158418,1743813043621,-570.72579474,0.00020599,2]
[357158420,1743813043630,-570.72579474,0.00020599,2]
[357158422,1743813043640,-570.72579474,0.00020599,2]
[357158424,1743813043649,-570.72579474,0.00020599,2]
[357158426,1743813043658,-570.72579474,0.00020599,2]
[357158428,1743813043668,-223.16623055,0.00020599,2]
[357158429,1743813043678,-5375.8355526,0.000206,3]
[357158430,1743813043686,-4417.97551465,0.000206,3]
[357158431,1743813043698,-1364.26537925,0.000206,3]
[357158437,1743813046593,-674.25,0.000206,3]
[357158438,1743813046674,-7738.45208853,0.000206,3]
[357158439,1743813046684,-54.9027327,0.000206,2]
[357158440,1743813046696,-7030.4804645,0.000206,2]
[357158441,1743813046830,-12914.6168028,0.000206,2]
[357158442,1743813046840,-275446.18675824,0.000206,2]
[357158443,1743813046854,-4519.94841129,0.000206,2]
[357158444,1743813046866,-22561.25093339,0.000206,2]
[357158471,1743814232779,-877.2136,0.0001755,2]
[357158472,1743814232887,-948.7864,0.0001755,2]
[357158473,1743814232898,-751.2136,0.00019532,2]
[357158498,1743814238585,-766.64733009,0.00019532,2]
[357158499,1743814238599,-147.38815661,0.00019532,2]
[357158500,1743814238610,-842.57371556,0.00020411,2]
[357158503,1743814240822,-302.11762603,0.00020411,2]
[357158504,1743814240834,-173.90113716,0.0002043,2]
[357158505,1743814240844,-7.9043639,0.00020472,2]
[357158506,1743814240857,-292.0956361,0.00020472,2]
[357158507,1743814240870,-500.0,0.00020473,2]
[357158508,1743814240881,-163.55268246,0.00020473,2]
[357158509,1743814240893,-500.0,0.00020473,2]
[357158510,1743814240903,-500.1702032,0.00020473,2]
[357158511,1743814240915,-641.28281746,0.00020473,2]
[357158512,1743814240926,-500.0,0.00020473,2]
[357158513,1743814240936,-581.72444124,0.00020473,2]
[357158514,1743814240947,-500.0,0.00020473,2]
[357158515,1743814240959,-500.0,0.00020473,2]
[357158516,1743814240970,-150.41434837,0.00020473,2]
[357158517,1743814240981,-500.0,0.00020473,2]
[357158518,1743814240992,-552.73632071,0.00020473,2]
[357158519,1743814241003,-500.0,0.00020473,2]
[357158520,1743814241014,-500.0,0.00020473,2]
[357158521,1743814241026,-500.0,0.00020473,2]
[357158522,1743814241038,-500.0,0.00020473,2]
[357158523,1743814241050,-500.0,0.00020473,2]
[357158524,1743814241061,-327.52066194,0.00020473,2]
[357158525,1743814241071,-500.21447099,0.00020473,2]
[357158526,1743814241082,-500.0,0.00020473,2]
[357158527,1743814241093,-225.73367461,0.00020473,2]
[357158528,1743814241111,-500.0,0.00020473,2]
[357158529,1743814241126,-500.0,0.00020473,2]
[357158530,1743814241136,-500.0,0.00020473,2]
[357158531,1743814241148,-500.0,0.00020473,2]
[357158532,1743814241160,-877.2136,0.00020473,2]
[357158533,1743814241172,-200.0,0.00020488,2]
[357158534,1743814241182,-500.0,0.00020499,2]
[357158535,1743814241195,-500.0,0.00020499,2]
[357158536,1743814241208,-500.0,0.00020499,2]
[357158537,1743814241223,-500.0,0.00020499,2]
[357158538,1743814241236,-500.0,0.00020499,2]
[357158539,1743814241247,-500.0,0.00020499,2]
[357158540,1743814241258,-500.0,0.00020499,2]
[357158541,1743814241268,-500.0,0.00020499,2]
[357158542,1743814241279,-500.0,0.00020499,2]
[357158543,1743814241289,-500.0,0.00020499,2]
[357158544,1743814241299,-500.0,0.00020499,2]
[357158545,1743814241311,-215.2191332,0.00020499,2]
[357158546,1743814241322,-500.0,0.00020499,2]
[357158547,1743814241334,-117381.20233305,0.000205,2]
[357158548,1743814241346,-152.0,0.00020507,2]
[357158549,1743814241359,-781.25,0.00020509,2]
[357158550,1743814241370,-500.0,0.00020573,2]
[357158551,1743814241381,-152.22770392,0.00020573,2]
[357158552,1743814241392,-500.0,0.00020573,2]
[357158553,1743814241405,-500.0,0.00020573,2]
[357158554,1743814241415,-500.0,0.00020573,2]
[357158555,1743814241426,-500.0,0.00020598,2]
[357158556,1743814241438,-500.0,0.00020598,2]
[357158557,1743814241449,-200.06,0.00020598,2]
[357158558,1743814241459,-500.0,0.00020598,2]
[357158559,1743814241474,-500.0,0.00020598,2]
[357158560,1743814241489,-500.0,0.00020598,2]
[357158561,1743814241500,-10000.0,0.00020599,2]
[357158562,1743814241513,-500.0,0.00020599,2]
[357158563,1743814241525,-500.0,0.00020599,2]
[357158564,1743814241537,-500.0,0.00020599,2]
[357158565,1743814241549,-539.56,0.00020599,2]
[357158566,1743814241560,-500.0,0.00020599,2]
[357158567,1743814241571,-500.0,0.00020599,2]
[357158568,1743814241582,-500.0,0.00020599,2]
[357158569,1743814241593,-500.0,0.00020599,2]
[357158570,1743814241604,-500.0,0.00020599,2]
[357158571,1743814241615,-500.0,0.00020599,2]
[357158572,1743814241627,-500.0,0.00020599,2]
[357158573,1743814241639,-375.66556719,0.00020599,2]
[357158574,1743814241651,-500.0,0.00020599,2]
[357158575,1743814241663,-242.69221273,0.00020599,2]
[357158576,1743814241673,-500.0,0.00020599,2]
[357158577,1743814241683,-500.0,0.00020599,2]
[357158578,1743814241694,-500.0,0.00020599,2]
[357158579,1743814241704,-190.65008006,0.00020599,2]
[357158580,1743814241720,-500.0,0.00020599,2]
[357158581,1743814241731,-500.0,0.00020599,2]
[357158582,1743814241742,-500.0,0.00020599,2]
[357158583,1743814241753,-500.0,0.00020599,2]
[357158584,1743814241764,-500.0,0.00020599,2]
[357158585,1743814241775,-500.0,0.00020599,2]
[357158586,1743814241787,-455.36999583,0.00020599,2]
[357158587,1743814241798,-500.0,0.00020599,2]
[357158588,1743814241808,-414.85814424,0.00020599,2]
[357158589,1743814241819,-500.0,0.00020599,2]
[357158590,1743814241830,-500.0,0.00020599,2]
[357158591,1743814241841,-500.0,0.00020599,2]
[357158592,1743814241852,-562.5748846,0.00020599,2]
[357158593,1743814241862,-500.0,0.00020599,2]
[357158594,1743814241872,-500.0,0.00020599,2]
[357158595,1743814241883,-500.0,0.00020599,2]
[357158596,1743814242050,-500.0,0.00020599,2]
[357158597,1743814242066,-500.0,0.00020599,2]
[357158598,1743814242076,-200.0,0.00020599,2]
[357158599,1743814242086,-500.0,0.00020599,2]
[357158600,1743814242095,-500.0,0.00020599,2]
[357158601,1743814242105,-500.0,0.00020599,2]
[357158602,1743814242114,-472.41631167,0.00020599,2]
[357158603,1743814242123,-500.0,0.00020599,2]
[357158604,1743814242132,-508.99,0.00020599,2]
[357158605,1743814242142,-500.0,0.00020599,2]
[357158606,1743814242151,-516.06,0.00020599,2]
[357158607,1743814242160,-500.0,0.00020599,2]
[357158608,1743814242169,-602.73,0.00020599,2]
[357158609,1743814242179,-581.45,0.00020599,2]
[357158610,1743814242189,-500.0,0.00020599,2]
[357158611,1743814242198,-500.0,0.00020599,2]
[357158612,1743814242207,-500.0,0.00020599,2]
[357158613,1743814242217,-500.0,0.00020599,2]
[357158614,1743814242226,-500.0,0.00020599,2]
[357158615,1743814242236,-500.0,0.00020599,2]
[357158616,1743814242246,-500.0,0.00020599,2]
[357158617,1743814242255,-251.61654967,0.00020599,2]
[357158618,1743814242264,-500.02792115,0.00020599,2]
[357158619,1743814242274,-1832.59,0.000206,2]
[357158620,1743814242284,-500.0,0.0002079,7]
[357158621,1743814242294,-224.42039448,0.00020798,2]
[357158622,1743814242303,-152.53494828,0.00020799,10]
[357158623,1743814242312,-618.17839894,0.00020872,2]
[357158624,1743814242322,-500.0,0.00020873,2]
[357158625,1743814242332,-500.0,0.00020873,2]
[357158626,1743814242341,-500.0,0.00020873,2]
[357158627,1743814242350,-500.0,0.00020873,2]
[357158628,1743814242360,-387.69111389,0.00020873,2]
[357158629,1743814242373,-8.17374703,0.00020873,2]
[357158630,1743814242382,-1950.47101656,0.000209,3]
[357158641,1743814246889,-419.12848707,0.00020508,2]
[357158642,1743814246899,-1213.28780438,0.000209,3]
[357158643,1743814246908,-151.0,0.00021,5]
[357158644,1743814246918,-469.46073509,0.00021,2]
[357158645,1743814246945,-30.53926491,0.00021,2]
[357158646,1743814246955,-500.0,0.00021147,2]
[357158647,1743814246965,-500.0,0.00021147,2]
[357158648,1743814246975,-500.0,0.00021421,2]
[357158649,1743814246984,-500.0,0.00021421,2]
[357158650,1743814246994,-173.90113715,0.00021423,2]
[357158651,1743814247003,-3163.75882084,0.00021555,3]
[357158652,1743814247012,-500.0,0.00021695,2]
[357158653,1743814247022,-500.0,0.00021695,2]
[357158654,1743814247032,-400.0,0.00021857,2]
[357158655,1743814247042,-500.0,0.00021969,2]
[357158656,1743814247051,-192.81686806,0.00021969,2]
[357158657,1743814247063,-151.0,0.00022,2]
[357158658,1743814247074,-3163.75882084,0.0002221,3]
[357158659,1743814247083,-500.0,0.00022243,2]
[357158660,1743814247092,-420.0,0.00022281,2]
[357158661,1743814247101,-173.90113715,0.00022415,2]
[357158662,1743814247110,-542.0,0.00022676,2]
[357158663,1743814247119,-2261.0,0.00022676,2]
[357158664,1743814247128,-1480.0,0.00022676,2]
[357158665,1743814247137,-542.968,0.00022676,2]
[357158666,1743814247147,-159.092,0.00022676,2]
[357158667,1743814247155,-2764.61857121,0.00022695,3]
[357158668,1743814247167,-409.73868768,0.00022695,3]
[357158671,1743814318221,-190.82992638,0.000204,2]
[357158673,1743814323067,-300.0,0.00020399,2]
[357158674,1743814340692,-287.36805321,0.000204,2]
[357158711,1743815432054,-344.35595155,0.00018622,2]
[357158712,1743815432064,-241.89404845,0.00019,2]
[357158713,1743815432079,-2785.20595155,0.00019,2]
[357158714,1743815432089,-160.0,0.00019374,2]
[357158716,1743815432099,-300.0,0.00019383,2]
[357158718,1743815432108,-24900.0,0.00019384,2]
[357158719,1743815432117,-200.0325504,0.0002,2]
[357158720,1743815432129,-781.25,0.00020231,2]
[357158721,1743815432138,-419.12848707,0.00020231,2]
[357158722,1743815432147,-160.0,0.00020231,2]
[357158723,1743815432156,-1132.77327442,0.00020232,2]
[357158724,1743815432165,-160.0,0.00020323,2]
[357158725,1743815432175,-12520.15255516,0.00020323,2]
[357158726,1743815432184,-336.44731754,0.00020373,2]
[357158727,1743815432193,-500.0,0.00020373,2]
[357158728,1743815432202,-500.0,0.00020373,2]
[357158729,1743815432211,-500.0,0.00020373,2]
[357158730,1743815432220,-400.0,0.00020388,2]
[357158731,1743815432229,-500.0,0.00020399,2]
[357158732,1743815432238,-500.0,0.00020399,2]
[357158733,1743815432247,-561.43127155,0.00020399,2]
[357158734,1743815432257,-500.0,0.00020399,2]
[357158735,1743815432266,-500.0,0.00020399,2]
[357158736,1743815432277,-226.68524018,0.00020399,2]
[357158737,1743815432287,-500.0,0.00020399,2]
[357158738,1743815432296,-500.0,0.00020399,2]
[357158739,1743815432306,-500.0,0.00020399,2]
[357158740,1743815432316,-500.0,0.00020399,2]
[357158741,1743815432326,-500.0,0.00020399,2]
[357158742,1743815432335,-500.0,0.00020399,2]
[357158743,1743815432345,-500.0,0.00020399,2]
[357158744,1743815432355,-500.0,0.00020399,2]
[357158745,1743815432364,-500.0,0.00020399,2]
[357158746,1743815432375,-500.0,0.00020399,2]
[357158747,1743815432384,-500.0,0.00020399,2]
[357158748,1743815432394,-500.0,0.00020399,2]
[357158749,1743815432404,-500.0,0.00020399,2]
[357158750,1743815432414,-500.0,0.00020399,2]
[357158751,1743815432423,-500.0,0.00020399,2]
[357158752,1743815432433,-500.0,0.00020399,2]
[357158753,1743815432443,-500.0,0.00020399,2]
[357158754,1743815432452,-500.0,0.00020399,2]
[357158755,1743815432462,-500.0,0.00020399,2]
[357158756,1743815432472,-500.0,0.00020399,2]
[357158757,1743815432481,-500.0,0.00020399,2]
[357158758,1743815432491,-500.0,0.00020399,2]
[357158759,1743815432501,-500.0,0.00020399,2]
[357158760,1743815432510,-500.0,0.00020399,2]
[357158761,1743815432519,-500.0,0.00020399,2]
[357158762,1743815432529,-500.0,0.00020399,2]
[357158763,1743815432538,-500.0,0.00020399,2]
[357158764,1743815432547,-500.0,0.00020399,2]
[357158765,1743815432557,-500.0,0.00020399,2]
[357158766,1743815432567,-500.0,0.00020399,2]
[357158767,1743815432576,-500.0,0.00020399,2]
[357158768,1743815432586,-500.0,0.00020399,2]
[357158769,1743815432595,-302.92816738,0.00020399,2]
[357158770,1743815432605,-500.0,0.00020399,2]
[357158771,1743815432615,-500.0,0.00020399,2]
[357158772,1743815432624,-500.0,0.00020399,2]
[357158773,1743815432634,-500.0,0.00020399,2]
[357158774,1743815432643,-500.0,0.00020399,2]
[357158775,1743815432652,-500.0,0.00020399,2]
[357158776,1743815432662,-500.0,0.00020399,2]
[357158777,1743815432671,-500.0,0.00020399,2]
[357158778,1743815432680,-600.0,0.00020399,2]
[357158779,1743815432690,-500.0,0.00020399,2]
[357158780,1743815432699,-500.0,0.00020399,2]
[357158781,1743815432708,-500.0,0.00020399,2]
[357158782,1743815432718,-500.0,0.00020399,2]
[357158783,1743815432727,-500.0,0.00020399,2]
[357158784,1743815432737,-500.0,0.00020399,2]
[357158785,1743815432746,-500.0,0.00020399,2]
[357158786,1743815432755,-214.34885126,0.00020399,2]
[357158787,1743815432765,-500.0,0.00020399,2]
[357158788,1743815432775,-500.0,0.00020399,2]
[357158789,1743815432786,-500.0,0.00020399,2]
[357158790,1743815432795,-354.81,0.00020399,2]
[357158791,1743815432805,-161.11,0.00020399,2]
[357158792,1743815432814,-500.0,0.00020399,2]
[357158793,1743815432824,-500.0,0.00020399,2]
[357158794,1743815432833,-500.0,0.00020399,2]
[357158795,1743815432842,-35881.18425549,0.000204,2]
[357158807,1743815437800,-3731.03213352,0.000204,2]
[357158824,1743815440084,-929.06,0.000204,2]
[357158825,1743815440147,-1352.64554896,0.000204,2]
[357158826,1743815440160,-25100.49397951,0.000204,2]
[357158827,1743815440170,-222.10927727,0.00020499,2]
[357158828,1743815440181,-500.0,0.00020673,2]
[357158829,1743815440190,-338.79,0.00020673,2]
[357158830,1743815440200,-2917.34956478,0.000209,3]
[357158831,1743815440210,-169.0,0.00021119,2]
[357158832,1743815440221,-222.10927725,0.00021474,2]
[357158833,1743815440230,-2917.3495646,0.00021555,3]
[357158834,1743815440240,-2000.0,0.00022,2]
[357158835,1743815440249,-2000.0,0.00022,2]
[357158836,1743815440259,-2000.0,0.00022,2]
[357158837,1743815440268,-2000.0,0.00022,2]
[357158838,1743815440278,-1007.0,0.00022,2]
[357158839,1743815440288,-151.0,0.00022,2]
[357158840,1743815440298,-2917.3495646,0.0002221,3]
[357158841,1743815440309,-222.10927725,0.0002245,2]
[357158842,1743815440318,-306.0,0.00022621,2]
[357158843,1743815440328,-6955.58345378,0.00022695,3]
[357158844,1743815440338,-500.0,0.00022718,2]
[357158845,1743815440348,-2917.3495646,0.00022866,4]
[357158846,1743815440358,-435.0,0.00022884,2]
[357158847,1743815440368,-160.0,0.00022994,2]
[357158848,1743815440377,-151.0,0.00023014,2]
[357158849,1743815440387,-1132.7732744,0.00023042,2]
[357158850,1743815440397,-500.0,0.00023117,2]
[357158851,1743815440407,-160.0,0.00023185,5]
[357158852,1743815440416,-160.0,0.00023185,3]
[357158853,1743815440426,-274.91699839,0.00023185,5]
[357158854,1743815440436,-160.0,0.00023185,3]
[357158855,1743815440446,-12520.15255516,0.00023185,3]
[357158856,1743815440455,-160.0,0.00023185,3]
[357158857,1743815440468,-781.25,0.00023185,3]
[357158858,1743815440478,-3735.2059898,0.0002338,3]
[357158859,1743815440488,-3000.0,0.0002338,2]
[357158860,1743815440498,-222.10927725,0.00023425,2]
[357158861,1743815440509,-2917.3495646,0.00023521,4]
[357158862,1743815440519,-3301.7363961,0.0002356,3]
[357158863,1743815440529,-419.12848707,0.0002356,3]
[357158864,1743815440540,-692.4438696,0.0002357,2]
[357158865,1743815440550,-2009.45425325,0.0002358,2]
[357158866,1743815440560,-500.0,0.00023698,2]
[357158867,1743815440570,-500.0,0.0002382,2]
[357158868,1743815440580,-600.0,0.00023904,2]
[357158869,1743815440590,-683.38143026,0.00023973,2]
[357158870,1743815440600,-203.01917914,0.00023999,2]
[357158871,1743815440764,-2687.9177763,0.00023999,3]
[357158872,1743815440774,-7097.47149122,0.00023999,3]
[357158873,1743815440784,-151.0,0.00024,10]
[357158874,1743815440793,-22575.0,0.00024,2]
[357158875,1743815440803,-151.0,0.00024,7]
[357158876,1743815440812,-151.0,0.00024,7]
[357158877,1743815440822,-151.0,0.00024,7]
[357158878,1743815440831,-151.0,0.00024,7]
[357158879,1743815440840,-154.656623,0.00024109,7]
[357158880,1743815440851,-500.0,0.00024109,2]
[357158881,1743815440860,-500.0,0.00024109,2]
[357158882,1743815440871,-500.0,0.00024109,2]
[357158883,1743815440880,-500.0,0.00024109,2]
[357158884,1743815440890,-500.0,0.00024109,2]
[357158885,1743815440900,-151.0,0.00024109,7]
[357158886,1743815440909,-500.0,0.00024109,2]
[357158887,1743815440919,-500.0,0.00024109,2]
[357158888,1743815440929,-500.0,0.00024109,2]
[357158889,1743815440938,-500.0,0.00024109,2]
[357158890,1743815440948,-500.0,0.00024109,2]
[357158891,1743815440958,-500.0,0.00024109,2]
[357158892,1743815440967,-500.0,0.00024109,2]
[357158893,1743815440976,-500.0,0.00024109,2]
[357158894,1743815440985,-500.0,0.00024109,2]
[357158895,1743815440995,-151.0,0.00024109,7]
[357158896,1743815441005,-151.0,0.00024109,7]
[357158897,1743815441015,-459.947525,0.00024109,2]
[357158898,1743815441024,-459.947525,0.00024109,2]
[357158899,1743815441034,-151.0,0.00024109,7]
[357158900,1743815441046,-151.0,0.00024109,7]
[357158901,1743815441057,-151.0,0.00024109,7]
[357158902,1743815441066,-181.786412,0.00024109,7]
[357158903,1743815441076,-181.786412,0.00024109,7]
[357158904,1743815441085,-151.0,0.00024109,7]
[357158905,1743815441095,-257.590314,0.00024109,7]
[357158906,1743815441104,-600.0,0.00024153,2]
[357158907,1743815441114,-151.0,0.00024164,2]
[357158908,1743815441123,-2917.3495646,0.00024176,5]
[357158909,1743815441133,-500.0,0.00024235,2]
[357158910,1743815441143,-1520.140212,0.0002428,5]
[357158911,1743815441154,-800.0,0.000243,2]
[357158912,1743815441163,-151.0,0.000243,7]
[357158913,1743815441173,-151.0,0.000243,7]
[357158914,1743815441183,-1000.0,0.000243,5]
[357158915,1743815441193,-156.897012,0.000243,7]
[357158916,1743815441202,-1000.0,0.0002432,5]
[357158917,1743815441212,-1000.0,0.0002434,5]
[357158918,1743815441221,-1000.0,0.0002436,5]
[357158919,1743815441231,-1000.0,0.0002438,5]
[357158920,1743815441240,-288.0000005,0.0002438,5]
[357158921,1743815441250,-1000.0,0.000244,5]
[357158922,1743815441260,-3731.83499687,0.000244,2]
[357158923,1743815441269,-222.10927725,0.000244,2]
[357158924,1743815441280,-600.0,0.00024402,2]
[357158925,1743815441291,-151.0,0.0002442,7]
[357158926,1743815441301,-1000.0,0.0002442,5]
[357158927,1743815441310,-1000.0,0.0002444,5]
[357158928,1743815441320,-1000.0,0.0002446,5]
[357158929,1743815441330,-500.0,0.00024473,2]
[357158930,1743815441339,-500.0,0.00024473,2]
[357158931,1743815441348,-500.0,0.00024473,2]
[357158932,1743815441359,-544.72829946,0.00024473,2]
[357158933,1743815441369,-1000.0,0.0002448,5]
[357158934,1743815441379,-22903.88176014,0.000245,5]
[357158935,1743815441392,-10020.13929603,0.000245,5]
[357158936,1743815441403,-3767.46988394,0.000245,5]
[357158940,1743815443006,-505.24918767,0.000245,5]
[357158941,1743815443018,-280.81555529,0.000245,5]
[357158942,1743815443067,-34627.42751127,0.000245,5]
[357158957,1743815445965,-401.0,0.00022534,2]
[357158958,1743815445977,-3759.91158731,0.000245,5]
[357158959,1743815445990,-7938.08718819,0.000245,5]
[357159009,1743816632254,-193.390421,0.00019296,2]
[357159010,1743816632264,-955.5631533,0.00019298,2]
[357159011,1743816632273,-401.19906687,0.00020229,2]
[357159012,1743816632283,-160.0,0.00020235,2]
[357159013,1743816632292,-300.0,0.00020272,2]
[357159014,1743816632301,-500.0,0.00020273,2]
[357159015,1743816632311,-500.0,0.00020273,2]
[357159016,1743816632320,-500.0,0.00020273,2]
[357159017,1743816632329,-500.0,0.00020273,2]
[357159018,1743816632338,-500.0,0.00020273,2]
[357159019,1743816632347,-500.0,0.00020273,2]
[357159020,1743816632357,-500.0,0.00020273,2]
[357159021,1743816632366,-248.43221737,0.00020273,2]
[357159022,1743816632375,-500.0,0.00020273,2]
[357159023,1743816632384,-500.0,0.00020273,2]
[357159024,1743816632393,-500.0,0.00020273,2]
[357159025,1743816632403,-500.0,0.00020273,2]
[357159026,1743816632412,-503.1109798,0.00020273,2]
[357159027,1743816632421,-202.45284356,0.00020287,2]
[357159028,1743816632434,-169.47,0.00020288,2]
[357159029,1743816632443,-563.90050714,0.00020297,2]
[357159030,1743816632452,-500.0,0.00020297,2]
[357159031,1743816632462,-153.1826128,0.00020297,2]
[357159032,1743816632473,-256.8431125,0.00020297,2]
[357159033,1743816632483,-332.46357725,0.00020297,2]
[357159034,1743816632497,-500.0,0.00020297,2]
[357159035,1743816632506,-500.0,0.00020297,2]
[357159036,1743816632516,-273.2407726,0.00020298,2]
[357159037,1743816632526,-516.85198957,0.00020298,2]
[357159038,1743816632535,-500.0,0.00020298,2]
[357159039,1743816632544,-500.0,0.00020298,2]
[357159040,1743816632553,-500.0,0.00020298,2]
[357159041,1743816632563,-500.0,0.00020298,2]
[357159042,1743816632574,-500.0,0.00020298,2]
[357159044,1743816632583,-500.0,0.00020298,2]
[357159045,1743816632592,-500.0,0.00020298,2]
[357159046,1743816632602,-345.87335896,0.00020298,2]
[357159047,1743816632611,-500.0,0.00020298,2]
[357159048,1743816632621,-500.0,0.00020298,2]
[357159049,1743816632630,-500.0,0.00020298,2]
[357159050,1743816632641,-500.0,0.00020298,2]
[357159051,1743816632651,-500.0,0.00020298,2]
[357159052,1743816632661,-500.0,0.00020298,2]
[357159053,1743816632671,-500.0,0.00020298,2]
[357159054,1743816632681,-500.0,0.00020298,2]
[357159055,1743816632692,-500.0,0.00020298,2]
[357159056,1743816632702,-500.0,0.00020298,2]
[357159057,1743816632713,-500.0,0.00020298,2]
[357159058,1743816632723,-500.0,0.00020298,2]
[357159059,1743816632733,-500.0,0.00020298,2]
[357159060,1743816632743,-500.0,0.00020298,2]
[357159061,1743816632758,-500.0,0.00020298,2]
[357159062,1743816632770,-500.0,0.00020298,2]
[357159063,1743816632784,-500.0,0.00020298,2]
[357159064,1743816632796,-500.0,0.00020298,2]
[357159065,1743816632808,-500.0,0.00020298,2]
[357159066,1743816632820,-500.0,0.00020298,2]
[357159067,1743816632833,-500.0,0.00020298,2]
[357159068,1743816632845,-500.0,0.00020298,2]
[357159069,1743816632856,-500.0,0.00020298,2]
[357159070,1743816632867,-500.0,0.00020298,2]
[357159071,1743816632880,-500.0,0.00020298,2]
[357159072,1743816632894,-500.0,0.00020298,2]
[357159073,1743816632905,-500.0,0.00020298,2]
[357159074,1743816632916,-500.0,0.00020298,2]
[357159075,1743816632928,-256.17561581,0.00020298,2]
[357159076,1743816632940,-500.0,0.00020298,2]
[357159077,1743816632951,-500.0,0.00020298,2]
[357159078,1743816632963,-499.99999999,0.00020298,2]
[357159079,1743816632975,-168.18619277,0.00020298,2]
[357159080,1743816632987,-500.71293312,0.00020298,2]
[357159081,1743816632999,-1343.95888815,0.00020299,3]
[357159082,1743816633010,-6792.76394303,0.00020299,3]
[357159083,1743816633022,-75348.98964832,0.00020299,2]
[357159084,1743816633039,-775.85619735,0.00020299,2]
[357159085,1743816633053,-41986.38358753,0.00020299,2]
[357159086,1743816633069,-71111.77297668,0.00020299,2]
[357159093,1743816638027,-253.63782889,0.00020297,2]
[357159094,1743816638039,-18.44217111,0.00020299,2]
[357159095,1743816638053,-7798.40333081,0.00020299,2]
[357159096,1743816638065,-4855.48787274,0.00020299,2]
[357159097,1743816638078,-373.92,0.00020299,2]
[357159098,1743816638123,-5307.70757329,0.00020299,2]
[357159116,1743816640459,-1512.81684643,0.00020299,2]
[357159118,1743816640473,-160910.21979574,0.00020299,2]
[357159120,1743816640485,-215.84330618,0.00020329,2]
[357159123,1743816640499,-419.12848707,0.00020329,2]
[357159125,1743816640511,-160.0,0.00020329,2]
[357159127,1743816640522,-500.0,0.00020389,2]
[357159129,1743816640535,-500.0,0.00020399,2]
[357159132,1743816640546,-500.0,0.00020399,2]
[357159134,1743816640558,-500.0,0.00020399,2]
[357159136,1743816640569,-500.0,0.00020399,2]
[357159138,1743816640580,-500.0,0.00020399,2]
[357159139,1743816640591,-209.55246215,0.00020399,2]
[357159140,1743816640601,-212.95358519,0.00020571,2]
[357159141,1743816640611,-500.0,0.00020673,2]
[357159142,1743816640622,-500.0,0.00020673,2]
[357159143,1743816640634,-2787.83595579,0.000209,3]
[357159144,1743816640644,-10000.0,0.00021,5]
[357159145,1743816640656,-2787.83595557,0.00021555,3]
[357159146,1743816640667,-15806.92062892,0.00022,2]
[357159147,1743816640679,-2787.83595557,0.0002221,3]
[357159148,1743816640691,-2787.83595557,0.00022866,4]
[357159149,1743816640702,-401.0,0.00022941,2]
[357159150,1743816640713,-500.0,0.00023097,2]
[357159151,1743816640723,-500.0,0.00023221,2]
[357159152,1743816640733,-6194.02188771,0.00023298,2]
[357159153,1743816640743,-500.0,0.00023385,2]
[357159154,1743816640753,-500.0,0.00023415,2]
[357159155,1743816640764,-2787.83595557,0.00023521,4]